Cogmind - Beta 16 @@@ ROGUE MODE // 2025.12.15 @ 15:06:03 Player: Andru7428 Result: Destroyed by S-43 Plague with Heavy Machine Gun Performance ------------- Evolutions (7) 3500 Regions Visited (28) 5600 Robots Destroyed (301) 1505 Value Destroyed (14646) 14646 Prototype IDs (41) 820 Alien Tech Used (0) 0 Bonus (6261) 6261 TOTAL SCORE: 32332 Bonus ------- High Alert Combat Kills 1317 Follower Combat Kills 1539 Entered Garrisons 800 Used RIF Installer 1500 Network Hubs Disabled 400 Met Data Miner 300 Built Enhanced Grunts 300 A7 Reached Mainframe 300 Friendly Fire -195 Cogmind --------- Core Integrity 0/1300 Matter 300/300 Energy 99/100 System Corruption 31% Temperature Cool (0) Movement Core (50) Location -3/Research Parts ------- > --- POWER (2) -------- (None) > --- PROPULSION (2) --- (None) > --- UTILITY (14) ----- (None) > --- WEAPON (3) ------- (None) > --- INVENTORY (5) ---- Weapon Mount Heavy Disruptor Cannon EMDS Peak State ------------ > --- POWER ------------ Quantum Reactor Quantum Reactor > --- PROPULSION ------- Armored Huge Wheel > --- UTILITY ---------- Advanced Cooling System High-capacity Storage Unit Enhanced Optical Array Advanced Sensor Array Advanced Signal Interpreter Advanced Targeting Computer Quantum Capacitor Layered Medium Armor Plating Centrium Heavy Armor Plating Experimental EM Shield Improved Hacking Suite Relay Coupler [NC] > --- WEAPON ----------- EMDS Cooled Plasma Cannon > --- INVENTORY -------- Antimatter Reactor Armored Huge Wheel Advanced Cooling System Energy Well Weapon Mount Improved Medium Armor Plating Improved Heavy Armor Plating Improved Force Field Relay Coupler [NC] Relay Coupler [Swarmer] Advanced Component Analysis Suite Tesla Rifle Advanced Plasma Cannon Heavy Shock Bomb Launcher Gamma Bomb Array Improved Remote Datajack [Rating: 139] Favorites ----------- Power Quantum Reactor Engine Ion Engine Reactor Quantum Reactor Propulsion Armored Huge Wheel Treads Light Treads Wheel Armored Huge Wheel Utility High-capacity Storage Unit Device Advanced Cooling System Storage High-capacity Storage Unit Processor Improved Signal Interpreter Hackware Relay Coupler [Sentry] Protection Centrium Medium Armor Plating Weapon Makeshift Axe Energy Gun High-powered Shock Rifle Energy Cannon Cooled Plasma Cannon Ballistic Gun Enhanced Autogun Launcher Gamma Bomb Array Special Weapon Remote Datajack Slashing Weapon Makeshift Axe Build | -11 -10 -10 -10 -9 -8 -8 -8 -8 -7 -7 -7 -7 -6 -6 -6 -6 -6 -5 -5 -5 -5 -5 -5 -5 -4 -3 -3 -3 ------- Run | Yrd Mat Min Exi Min Mat Gar Mat Gar Fac Low Low Dat Pro Fac Was Fac Gar Fac Was Fac Ext Cet Arc Hub Fac Res Gar Res Slots Evolved 14 | . . . . . 4 . . . 2 . . . . 2 . . . 2 . . . . . . 2 2 . . Power 1 | . . . . . . . . . . . . . . . . . . . . . . . . . 1 . . . Propulsion . | . . . . . . . . . . . . . . . . . . . . . . . . . . . . . Utility 12 | . . . . . 4 . . . 2 . . . . 2 . . . 2 . . . . . . . 2 . . Weapon 1 | . . . . . . . . . . . . . . . . . . . . . . . . . 1 . . . Parts Attached 178 | 7 8 1 . 3 17 5 1 8 24 6 4 . . 4 5 13 10 3 5 2 2 2 5 7 8 12 8 8 Power 13 | 1 1 . . . . 1 . 1 1 . . . . . 1 . 1 . . . . 1 . . 1 2 1 1 Engine 5 | 1 1 . . . . 1 . 1 1 . . . . . . . . . . . . . . . . . . . Core . | . . . . . . . . . . . . . . . . . . . . . . . . . . . . . Reactor 8 | . . . . . . . . . . . . . . . 1 . 1 . . . . 1 . . 1 2 1 1 Propulsion 17 | 2 . . . 2 4 . . 3 2 . . . . . . 2 1 . . . . . . . . 1 . . Treads 6 | 2 . . . 2 2 . . . . . . . . . . . . . . . . . . . . . . . Leg . | . . . . . . . . . . . . . . . . . . . . . . . . . . . . . Wheel 11 | . . . . . 2 . . 3 2 . . . . . . 2 1 . . . . . . . . 1 . . Hover . | . . . . . . . . . . . . . . . . . . . . . . . . . . . . . Flight . | . . . . . . . . . . . . . . . . . . . . . . . . . . . . . Utility 104 | 2 3 1 . . 8 2 1 4 15 5 2 . . 4 4 5 7 3 3 1 2 1 5 6 6 8 3 3 Device 33 | 1 . . . . 3 . . . 4 1 1 . . 1 . 4 4 1 . . 1 . 3 2 3 3 1 . Storage 7 | 1 1 . . . 1 . . . . . . . . . . . . 1 . 1 . . . . 1 1 . . Processor 16 | . . . . . 2 2 . 2 1 . . . . 1 1 . . . . . . . . . 2 1 1 3 Hackware 12 | . . . . . . . . . 2 1 1 . . 1 1 . 3 1 . . . . . 1 . 1 . . Protection 36 | . 2 1 . . 2 . 1 2 8 3 . . . 1 2 1 . . 3 . 1 1 2 3 . 2 1 . Artifact . | . . . . . . . . . . . . . . . . . . . . . . . . . . . . . Weapon 44 | 2 4 . . 1 5 2 . . 6 1 2 . . . . 6 1 . 2 1 . . . 1 1 1 4 4 Energy Gun 14 | 1 1 . . . . . . . 4 . . . . . . 2 . . . . . . . . . . 3 3 Energy Cannon 8 | . . . . . . . . . 1 . 2 . . . . 2 . . . . . . . . 1 . 1 1 Ballistic Gun 9 | 1 3 . . 1 3 1 . . . . . . . . . . . . . . . . . . . . . . Ballistic Cannon . | . . . . . . . . . . . . . . . . . . . . . . . . . . . . . Launcher 6 | . . . . . 1 1 . . . . . . . . . 1 . . 1 1 . . . . . 1 . . Special Weapon 5 | . . . . . . . . . 1 1 . . . . . 1 1 . . . . . . 1 . . . . Impact Weapon . | . . . . . . . . . . . . . . . . . . . . . . . . . . . . . Slashing Weapon 2 | . . . . . 1 . . . . . . . . . . . . . 1 . . . . . . . . . Piercing Weapon . | . . . . . . . . . . . . . . . . . . . . . . . . . . . . . Special Melee Weapon . | . . . . . . . . . . . . . . . . . . . . . . . . . . . . . Unidentified Prototypes 17 | . . . . . 2 . . . 3 1 . . . . . 2 1 . 2 1 . 1 . 2 1 1 . . Corrupted Parts 1 | . . . . . . . . . . . . . . . . . . . . . . 1 . . . . . . System Corruption 10 | . . . . . . . . . . . . . . . . . . . . . . 10 . . . . . . Parts Lost 40 | . 3 . . . . . 1 4 1 3 . . . . . 1 3 2 . . . . . 1 2 6 4 9 Power 6 | . 1 . . . . . . 1 . . . . . . . . 1 . . . . . . . . 1 1 1 Propulsion 4 | . . . . . . . . 2 . . . . . . . . . . . . . . . . . . . 2 Utility 20 | . . . . . . . 1 1 1 3 . . . . . . 1 1 . . . . . 1 . 4 3 4 Weapon 10 | . 2 . . . . . . . . . . . . . . 1 1 1 . . . . . . 2 1 . 2 Highest Loss Streak 6 | . 2 . . . . . 1 2 1 2 . . . . . 1 2 2 . . . . . 1 2 6 2 6 To Critical Strikes . | . . . . . . . . . . . . . . . . . . . . . . . . . . . . . Average Backups 16 | 5 11 15 14 14 16 17 16 16 17 17 16 17 17 17 18 17 15 15 16 16 15 17 16 14 16 16 13 14 Power 1 | 1 1 1 1 2 2 2 2 1 1 1 1 1 1 1 1 1 . . . 1 1 1 1 1 . . . . Propulsion 1 | 3 4 2 2 2 4 5 5 2 . 1 1 1 1 1 1 1 1 1 1 1 1 1 1 1 . 1 1 . Utility 7 | . 2 4 3 4 5 6 5 8 8 7 6 7 7 7 7 6 6 8 8 8 7 8 7 6 9 8 5 4 Weapon 5 | 1 2 8 7 6 4 4 4 4 6 7 8 8 8 7 7 7 5 5 5 5 6 7 6 5 4 4 6 6 Tool/Special . | . . . . . . . . . . . . . . . . . . . . . . . . . . . . . Unused Backups 64 | . 7 1 2 2 10 2 . 7 4 . . . . . 1 3 2 . 4 . . 3 1 1 3 4 . 7 Power 9 | . . . . . . 1 . 1 2 . . . . . 1 . . . 2 . . 1 . . 1 . . . Propulsion 9 | . 3 . . . 3 . . 3 . . . . . . . . . . . . . . . . . . . . Utility 32 | . 2 . 1 . 3 1 . 3 2 . . . . . . 1 1 . 2 . . 2 1 1 2 4 . 6 Weapon 12 | . 2 1 1 2 4 . . . . . . . . . . 1 . . . . . . . . . . . 1 Tool/Special 2 | . . . . . . . . . . . . . . . . 1 1 . . . . . . . . . . . Average Slot Usage (%) 84 | . 99 100 100 100 90 90 90 93 91 81 91 92 92 90 79 72 84 89 76 76 75 76 80 89 81 77 64 82 Engine 4 | . 14 14 14 14 9 9 9 9 7 7 7 7 7 6 2 . . . . . . . . . . . . . Reactor 3 | . . . . . . . . . . . . . . . 3 6 6 5 5 5 5 5 5 5 9 9 7 8 Treads 2 | . 28 28 28 28 5 . . . . . . . . . . . . . . . . . . . . . . . Wheel 6 | . . . . . 12 18 18 13 7 7 7 7 7 6 6 6 6 5 5 5 5 5 5 5 5 4 4 3 Device 9 | . 9 13 14 13 11 2 . 6 7 . . . . 4 . 11 15 19 6 4 7 5 9 8 14 17 9 17 Storage 6 | . 14 14 14 14 9 9 9 9 7 7 7 7 7 6 6 6 6 5 5 5 5 5 5 5 5 4 5 6 Processor 10 | . . . . . 10 15 18 25 23 13 7 7 7 11 10 6 6 5 5 5 5 5 5 5 9 13 14 22 Hackware 11 | . . . . . . . . . 6 7 22 23 23 25 27 14 21 27 29 29 26 23 23 28 16 9 4 3 Protection 10 | . 4 . . . 14 18 18 11 13 21 22 23 23 14 6 6 7 5 4 5 5 11 11 14 10 10 11 3 Energy Gun 1 | . 12 . . . . . . . 1 . . . . . . 5 3 . . . . . . . . . 2 11 Energy Cannon 2 | . . . . . . . . . . 4 6 7 7 6 6 2 6 4 . . 2 2 . 4 5 4 . 1 Ballistic Gun 5 | . 14 28 28 28 17 15 13 12 6 . . . . . . . . . . . . . . . . . . . Special Weapon 1 | . . . . . . . . . 1 . 7 7 7 3 1 1 . 4 5 4 5 5 5 2 . . . . Slashing Weapon 2 | . . . . . . 2 4 5 4 6 . . . 2 4 2 2 . 4 5 . . 4 3 1 . . . Peak Build Rating 139 | 7 11 12 11 12 31 33 33 37 54 59 55 55 55 64 76 78 75 77 87 84 91 95 93 99 129 139 128 133 Average Rating 67 | 4 7 11 11 11 26 32 33 33 48 50 54 55 55 62 69 75 65 70 81 80 83 92 80 91 113 121 106 117 On Entrance 56 | . 7 11 11 11 12 30 33 33 37 50 51 55 55 55 63 72 74 67 68 83 80 87 93 85 95 107 104 122 Avg Prop Armor Cover (%) 4 | . . . . . 4 . . . . . . . . . . . . . . . . . . . . . . . Naked Turns 29 | . . . . . . . . . . . . . . . . . . . . . . . . . . . . 29 Heaviest Build 153 | 14 32 32 32 36 73 73 73 73 80 86 78 78 78 79 111 119 122 80 112 117 125 129 125 118 133 153 146 134 Greatest Support 40 | 40 40 40 40 40 40 32 32 32 28 28 28 28 28 28 28 28 28 28 28 28 28 28 28 28 28 28 28 28 Greatest Overweight (x) 5 | . . . . . 4 2 2 2 2 3 2 2 2 2 3 4 4 2 3 4 4 4 4 4 4 5 5 4 Average Overweight (x) 2 | . . . . . 1 2 2 1 2 2 2 2 2 2 2 3 2 2 2 3 3 4 2 3 3 4 4 2 Largest Inventory Capacity 20 | 8 15 15 15 15 20 20 20 20 20 20 20 20 20 20 20 20 20 20 20 20 20 20 20 20 20 20 20 20 Average Capacity 19 | 7 14 15 15 15 18 20 20 20 20 20 20 20 20 20 20 20 20 20 20 20 20 20 20 20 20 20 20 19 Most Carried 20 | 8 15 15 15 15 20 20 19 20 20 20 19 19 19 20 20 20 20 20 20 20 20 20 20 20 20 20 18 20 Average Carried 18 | 5 11 14 14 14 18 19 18 18 19 19 18 19 19 19 20 19 18 19 19 20 19 20 19 19 18 19 15 16 Final Capacity 20 | 8 15 15 15 15 20 20 20 20 20 20 20 20 20 20 20 20 20 20 20 20 20 20 20 20 20 20 20 5 Final Carried 20 | 6 15 15 15 15 20 19 17 20 20 19 19 19 19 20 20 20 20 20 20 20 20 20 20 20 20 16 14 5 Class Distribution -------------------- 33% | Bothacker-Mutant 30% | Mutant 14% | Scavenger-Mutant 6% | Commander-Mutant 5% | Bothacker-Assassin 3% | Scavenger-Skirmisher Dominant Class ---------------- Mutant | -10/Materials Mutant | -10/Mines Mutant | -10/Exiles Scavenger-Mutant | -9/Mines Mutant | -8/Materials Mutant | -8/Garrison Commander-Mutant | -8/Materials Scavenger-Mutant | -8/Garrison Bothacker-Assassin | -7/Factory Bothacker-Mutant | -7/Lower Caves Bothacker-Mutant | -7/Lower Caves Bothacker-Mutant | -7/Data Miner Bothacker-Mutant | -6/Proximity Caves Bothacker-Mutant | -6/Factory Bothacker-Mutant | -6/Waste Mutant | -6/Factory Bothacker-Mutant | -6/Garrison Bothacker-Mutant | -5/Factory Bothacker-Mutant | -5/Waste Bothacker-Mutant | -5/Factory Bothacker-Mutant | -5/Extension Bothacker-Mutant | -5/Cetus Commander-Mutant | -5/Archives Bothacker-Mutant | -5/Hub_04(d) Scavenger-Mutant | -4/Factory Mutant | -3/Research Mutant | -3/Garrison Skirmisher | -3/Research Resources | -11 -10 -10 -10 -9 -8 -8 -8 -8 -7 -7 -7 -7 -6 -6 -6 -6 -6 -5 -5 -5 -5 -5 -5 -5 -4 -3 -3 -3 ----------- Run | Yrd Mat Min Exi Min Mat Gar Mat Gar Fac Low Low Dat Pro Fac Was Fac Gar Fac Was Fac Ext Cet Arc Hub Fac Res Gar Res Matter Collected 8398 | 253 172 . . 52 643 542 . 645 841 438 149 . . 122 193 467 280 . 195 . 235 80 104 340 697 1204 465 281 Remotely . | . . . . . . . . . . . . . . . . . . . . . . . . . . . . . Salvage Created 18242 | 85 485 101 . 10 843 1058 69 994 1190 573 227 . 21 122 723 1732 1764 20 312 . 388 274 297 742 1426 2549 1660 577 Parts 738 | 7 23 3 . 1 52 55 3 46 51 14 8 . 2 2 17 85 52 5 1 . 12 16 18 32 42 103 69 19 Haulers Intercepted 10 | . 1 . . . 5 . . . 2 . . . . . . 2 . . . . . . . . . . . . Recyclers Shooed 7 | 1 1 . . . . . . . . . . . . . . . . . . . . . . . 4 . . 1 Parts Field Recycled . | . . . . . . . . . . . . . . . . . . . . . . . . . . . . . Retrieved Matter . | . . . . . . . . . . . . . . . . . . . . . . . . . . . . . Parts Self-Destructed 12 | . . . . . . . . . . 5 3 . 4 . . . . . . . . . . . . . . . Prevented 17 | . . . . . . . . . . 10 5 . 2 . . . . . . . . . . . . . . . Parts Restored . | . . . . . . . . . . . . . . . . . . . . . . . . . . . . . Kills | -11 -10 -10 -10 -9 -8 -8 -8 -8 -7 -7 -7 -7 -6 -6 -6 -6 -6 -5 -5 -5 -5 -5 -5 -5 -4 -3 -3 -3 ------- Run | Yrd Mat Min Exi Min Mat Gar Mat Gar Fac Low Low Dat Pro Fac Was Fac Gar Fac Was Fac Ext Cet Arc Hub Fac Res Gar Res Combat Hostiles Destroyed 240 | . 11 2 . . 14 18 2 20 13 8 5 . 2 . 3 22 14 4 . . 5 3 1 11 18 34 21 9 Melee 9 | . . . . . . . . 1 . . . . . . 3 5 . . . . . . . . . . . . Guns 80 | . 8 2 . . 14 15 2 10 10 . . . . . . 6 8 . . . . . . . . . 2 3 Cannons 40 | . . . . . . . . . . . 2 . 1 . . 3 2 . . . 1 . 1 6 11 12 1 . AOE 51 | . 2 . . . . 3 . 9 2 5 2 . . . . 6 4 4 . . . . . 2 . 3 4 5 Classes Destroyed 18 | 1 3 . . . 2 3 . 1 4 . . . 1 . 1 . . . . . 1 . . 1 . . . . Worker 8 | . . . . . . . . . 3 . . . . . . 2 . . . . . . . . 1 1 . 1 Builder 9 | . . . . . . . . . 4 . . . . . . 2 . . . . . . . . . 3 . . Tunneler 8 | 4 . . . 1 2 . . . 1 . . . . . . . . . . . . . . . . . . . Hauler 10 | . 1 . . . 5 . . . 2 . . . . . . 2 . . . . . . . . . . . . Recycler 8 | . . . . . . . . . 4 . . . . 1 . 2 . . . . . . . . 1 . . . Operator 7 | . . . . . . . . . . . . . . . . . . . . . 1 . 6 . . . . . Drone 2 | . . . . . . . . . . . . . 2 . . . . . . . . . . . . . . . Watcher 4 | . . . . . . . . . 1 . . . . . . . . . . . . 1 . . 1 1 . . Swarmer 43 | . 3 . . . 5 5 1 4 . . 1 . . . . 8 5 4 . . . . . . . 3 . 4 Grunt 101 | . 8 2 . . 6 3 . 5 6 4 1 . . . . 6 9 . . . 3 . . 6 9 15 14 4 Brawler 5 | . . . . . . 1 . . . 2 . . . . . . . . . . 1 . . 1 . . . . Duelist 11 | . . . . . . 2 . 1 1 2 2 . . . . . 2 . . . . . . . . 1 . . Sentry 26 | . . . . . 3 6 1 3 1 1 . . . . . 2 1 . . . 1 . 1 . 3 3 . . Specialist 1 | . . . . . . . . 1 . . . . . . . . . . . . . . . . . . . . Hunter 12 | . . . . . 1 . . 2 . . 1 . . . . 2 . . . . . . . . . 2 4 . Programmer 37 | . . . . . . 1 . 4 5 . . . . . . 6 . . . . . . . 2 6 10 2 1 Behemoth 2 | . . . . . . . . . . . . . . . . . . . . . . . . 1 . . 1 . Compactor 3 | . . . . . . . . . . . . . . . 3 . . . . . . . . . . . . . Cetus Guard 3 | . . . . . . . . . . . . . . . . . . . . . . 3 . . . . . . Lightning 1 | . . . . . . . . . . . . . . . . . . . . . . . . 1 . . . . Best Kill Streak 10 | 4 3 2 . 1 5 4 1 9 6 4 4 . 1 1 1 5 5 4 . . 1 4 2 4 8 4 10 4 Combat Bots Only 10 | . 3 2 . . 5 4 1 9 4 4 4 . 1 . 1 3 5 4 . . 1 3 1 4 6 4 10 3 Max Kills in Single Turn 4 | 1 1 1 . 1 2 3 1 3 1 2 1 . 1 1 1 3 4 3 . . 1 2 1 2 1 4 2 2 Gunslinging 1 | . . . . . . 1 . 1 . . . . . . . . . . . . . . . . . . . . Exploded 3 | . 1 . . . . 3 . 3 1 1 1 . . . . 3 3 3 . . . . . 2 . 3 2 1 Melee 1 | . . . . . . . . 1 . . . . . . 1 1 . . . . . . . . . . . . Uniques/NPCs Destroyed . | . . . . . . . . . . . . . . . . . . . . . . . . . . . . . Combat | -11 -10 -10 -10 -9 -8 -8 -8 -8 -7 -7 -7 -7 -6 -6 -6 -6 -6 -5 -5 -5 -5 -5 -5 -5 -4 -3 -3 -3 -------- Run | Yrd Mat Min Exi Min Mat Gar Mat Gar Fac Low Low Dat Pro Fac Was Fac Gar Fac Was Fac Ext Cet Arc Hub Fac Res Gar Res Hostile Shots Fired 1413 | . 63 3 . 1 43 45 8 68 98 17 16 . . 15 . 183 60 26 . . 19 17 9 81 75 314 97 155 Missed 472 | . 17 3 . . 21 16 1 31 35 8 3 . . 6 . 56 15 11 . . 7 8 1 22 21 110 31 49 Hits 941 | . 46 . . 1 22 29 7 37 63 9 13 . . 9 . 127 45 15 . . 12 9 8 59 54 204 66 106 Melee 15 | . . . . . . . . . 7 2 1 . . . . . 5 . . . . . . . . . . . Projectile 926 | . 46 . . 1 22 29 7 37 56 7 12 . . 9 . 127 40 15 . . 12 9 8 59 54 204 66 106 Critical Strikes 45 | . 1 . . . 1 1 . 2 4 2 . . . . . 6 2 . . . 1 . . 4 4 9 5 3 Part Disruptions 1 | . . . . . . . . . . . . . . . . . . . . . . . . . . 1 . . Damage Taken 16059 | . 657 . . 12 305 412 252 664 1111 608 286 . . 60 . 1176 974 243 . . 293 175 203 801 475 3641 1342 2369 Core 2226 | . 151 . . 12 18 67 . 89 123 19 . . . . . 33 183 36 . . 21 26 23 82 28 286 81 948 Absorbed by Shields 502 | . . . . . . . . . . . . . . . . . . . . . 130 87 . . . 285 . . Redirected to Shielding 61 | . 61 . . . . . . . . . . . . . . . . . . . . . . . . . . . Ignored by Resistances 2726 | . . . . . . . . . . . . . . . . 558 . . . . 31 17 . 607 707 806 . . Regen/Repaired (Parts) 652 | . . . . . 56 . . . 181 . . . . 65 . . . . . 77 10 . 24 . 239 . . . Core Remaining (%) 76 | 100 . . . 34 . . . 68 . . . . 79 . . . 74 . . . . . . 81 97 . . . Volleys Fired 953 | 8 51 4 . . 49 45 4 36 74 42 16 . 4 6 8 84 42 7 . 3 31 4 6 60 104 178 50 37 Largest 3 | 2 2 2 . . 2 2 2 2 2 1 1 . 1 1 1 2 2 1 . 1 1 1 1 1 2 1 3 3 Hottest 282 | 60 70 46 . . 51 50 50 50 105 90 69 . 69 69 5 120 123 43 . 5 80 80 35 105 175 80 282 282 Shots Fired 1243 | 16 95 8 . . 96 87 7 67 111 43 16 . 4 6 8 97 65 7 . 3 31 4 6 60 106 177 58 65 Gun 620 | 16 95 8 . . 96 86 7 59 94 . . . . . . 63 23 . . . 7 . . . 6 . 16 44 Cannon 468 | . . . . . . . . . 2 18 12 . 2 6 . 24 34 . . . 13 . 6 51 100 165 27 8 Launcher 94 | . . . . . . 1 . 8 5 20 3 . . . . 4 2 2 . . 8 4 . 3 . 6 15 13 Special 61 | . . . . . . . . . 10 5 1 . 2 . 8 6 6 5 . 3 3 . . 6 . 6 . . Kinetic 392 | 8 53 8 . . 96 86 7 59 66 . . . . . . 9 . . . . . . . . . . . . Thermal 334 | . 5 . . . . . . . 2 18 . . . . . 3 . . . . 13 . 6 51 64 97 27 48 Explosive 22 | . . . . . . 1 . 8 5 . 3 . . . . 1 2 2 . . . . . . . . . . Electromagnetic 434 | 8 37 . . . . . . . 28 20 12 . 2 6 . 78 57 . . . 15 4 . 3 42 74 31 17 Robot Hit Streak 21 | 6 11 4 . . 10 11 5 21 17 5 12 . 2 3 6 9 16 9 . 2 5 2 2 7 14 20 8 9 Robot Miss Streak 6 | 2 4 1 . . 5 3 2 2 3 6 1 . 2 1 2 3 1 1 . 1 3 4 1 5 3 3 3 2 Penetration Max 1 | . . . . . 1 . . . . . . . . . . . . . . . . . . . 1 1 . . Secondary Targets 12 | . 1 . . . 3 4 . 2 1 . . . . . . . . . . . . . . . . . . 1 Max Gunslinging Chain 1 | . 1 . . . 1 1 . 1 1 . . . . . . . . . . . . . . . . . . 1 Capacitor 294 | . . . . . . . . . . . . . . . . . . . . . . . . . 102 165 27 . Shots Hit Robots 958 | 11 65 6 . . 62 72 5 69 92 13 12 . 2 4 41 74 88 6 16 2 16 1 18 57 56 102 35 33 Core Hits 522 | 8 21 3 . . 30 38 3 48 40 16 10 . 1 1 8 45 47 9 2 . 9 16 5 28 23 63 28 20 Critical Kills 4 | . . . . . 1 . . 1 . . . . . . . . . . . . 1 . . . . 1 . . Critical Parts Destroyed . | . . . . . . . . . . . . . . . . . . . . . . . . . . . . . Critical Strikes 33 | . 1 . . . 1 1 . 2 1 . 1 . . . 1 5 4 . . . 2 . . . 4 9 1 . Meltdown 2 | . . . . . . . . . . . . . . . . . . . . . 1 . . . . 1 . . Destroy 2 | . . . . . 1 . . 1 . . . . . . . . . . . . . . . . . . . . Corrupt 18 | . 1 . . . . . . . . . 1 . . . . 1 1 . . . 1 . . . 4 8 1 . Sever 11 | . . . . . . 1 . 1 1 . . . . . 1 4 3 . . . . . . . . . . . Melee Attacks 280 | . . . . . 2 38 1 29 32 . . . . 3 35 33 41 . 16 3 . . 18 22 7 . . . Impact . | . . . . . . . . . . . . . . . . . . . . . . . . . . . . . Slashing 280 | . . . . . 2 38 1 29 32 . . . . 3 35 33 41 . 16 3 . . 18 22 7 . . . Piercing . | . . . . . . . . . . . . . . . . . . . . . . . . . . . . . Sneak Attacks 60 | . . . . . . . . 1 10 . . . . 1 35 2 . . . . . . 11 . . . . . Combat Hostiles 35 | . . . . . . . . . . . . . . . 35 . . . . . . . . . . . . . Follow-up Attacks . | . . . . . . . . . . . . . . . . . . . . . . . . . . . . . Damage Inflicted 39184 | 118 896 109 . 11 1118 2126 83 3254 2883 1102 458 . 100 152 1315 2638 4478 381 606 . 664 494 1252 2416 2918 5245 2958 1409 Guns 7769 | 118 720 96 . . 1118 924 83 812 1409 . . . . . . 854 342 . . . 115 . . . 94 . 276 808 Cannons 11140 | . . . . . . . . . . . 229 . 100 94 . 357 645 . . . 222 . 130 1399 2824 4362 778 . Explosions 10284 | . 172 . . . . 143 . 1415 657 1102 229 . . . . 722 855 381 . . 327 494 . 428 . 870 1904 585 Melee 9934 | . . . . . . 1059 . 1027 817 . . . . 58 1315 705 2636 . 606 . . . 1122 589 . . . . Ramming 57 | . 4 13 . 11 . . . . . . . . . . . . . . . . . . . . . 13 . 16 Kinetic 4467 | 38 278 96 . . 1118 924 83 812 980 . . . . . . 138 . . . . . . . . . . . . Thermal 7562 | . 240 . . . . . . . 24 26 47 . . . . 198 325 . . . 222 . 130 1399 1311 2013 846 781 Explosive 3526 | . . . . . . 143 . 1415 633 . 182 . . . . 242 530 381 . . . . . . . . . . Electromagnetic 13638 | 80 374 . . . . . . . 429 1076 229 . 100 94 . 1355 987 . . . 442 494 . 428 1607 3219 2112 612 Impact . | . . . . . . . . . . . . . . . . . . . . . . . . . . . . . Slashing 9934 | . . . . . . 1059 . 1027 817 . . . . 58 1315 705 2636 . 606 . . . 1122 589 . . . . Piercing . | . . . . . . . . . . . . . . . . . . . . . . . . . . . . . Highest Corruption 31 | . . . . . . 1 1 4 4 12 12 12 12 2 7 7 . . . . . 10 10 3 1 16 18 31 Average Corruption 6 | . . . . . . 1 1 3 1 9 12 12 12 1 5 5 . . . . . 10 5 1 1 3 16 19 Corruption Purged 17 | . . . . . . . . . . . . . . . . 7 . . . . . . 10 . . . . . Corruption Blocked 8 | . . . . . . . . . . . . . . . 8 . . . . . . . . . . . . . Effects 255 | . . . . . . 5 1 26 14 33 16 5 17 2 13 15 . . . . . 8 6 6 4 31 25 28 Message Errors 54 | . . . . . . 1 1 4 1 9 5 1 1 . 3 5 . . . . . 2 1 2 2 6 2 8 Matter Fused 62 | . . . . . . 2 . 8 2 5 4 2 7 1 4 5 . . . . . 1 1 2 . 5 6 7 Heat Flow Errors 38 | . . . . . . . . 4 5 4 3 . 3 . 3 . . . . . . 2 . . 1 4 8 1 Energy Discharges 25 | . . . . . . . . 4 1 1 1 1 2 . 1 1 . . . . . 1 . . . 8 . 4 Parts Rejected 1 | . . . . . . . . . . 1 . . . . . . . . . . . . . . . . . . Parts Fused 5 | . . . . . . . . . . 1 1 . . . . 1 . . . . . . . . . 2 . . Data Loss (minor) 23 | . . . . . . . . 2 1 6 2 . 1 1 . . . . . . . . 1 . . 2 4 3 Data Loss (major) 16 | . . . . . . . . 1 1 1 . . 3 . 1 1 . . . . . 2 2 1 . . 1 2 Misfires 11 | . . . . . . 2 . 3 2 2 . . . . . . . . . . . . . . . 1 . 1 Alerts 10 | . . . . . . . . . 1 2 . 1 . . 1 1 . . . . . . 1 1 1 1 . . Misdirections 2 | . . . . . . . . . . . . . . . . . . . . . . . . . . . . 2 Weapon Failures 8 | . . . . . . . . . . 1 . . . . . 1 . . . . . . . . . 2 4 . Overload Shots 10 | . . . . . . . . . . . . . . . . . . . . . . . . 5 5 . . . Effects 1 | . . . . . . . . . . . . . . . . . . . . . . . . . 1 . . . Heat Surge 1 | . . . . . . . . . . . . . . . . . . . . . . . . . 1 . . . Overflow Damage 1530 | . 47 . . . . 42 . 149 320 30 . . 18 31 . 17 104 7 . . . . 326 64 138 208 28 1 Projectiles 423 | . . . . . . . . . . . . . 18 3 . 17 . . . . . . . 19 138 208 20 . Explosions 242 | . 47 . . . . 2 . 60 49 30 . . . . . . 38 7 . . . . . . . . 8 1 Melee 865 | . . . . . . 40 . 89 271 . . . . 28 . . 66 . . . . . 326 45 . . . . Knockbacks . | . . . . . . . . . . . . . . . . . . . . . . . . . . . . . Impact . | . . . . . . . . . . . . . . . . . . . . . . . . . . . . . Kinetic . | . . . . . . . . . . . . . . . . . . . . . . . . . . . . . Secondary . | . . . . . . . . . . . . . . . . . . . . . . . . . . . . . Self-Inflicted Damage 629 | . 98 . . . . . . 27 63 183 63 . . . . . 62 . . . 1 . . . . 23 76 33 Shots 27 | . 3 . . . . . . 1 2 10 1 . . . . . 2 . . . 1 . . . . 2 3 2 Rammed 11 | . 1 1 . 4 . . . . . . . . . . . . . . . . . . . . . 1 . 4 Targets Rammed 12 | . 1 1 . 5 . . . . . . . . . . . . . . . . . . . . . 1 . 4 Kicked . | . . . . . . . . . . . . . . . . . . . . . . . . . . . . . Crushed 1 | . . . . 1 . . . . . . . . . . . . . . . . . . . . . . . . Highest Temperature 343 | 20 150 . . . 100 303 39 262 264 311 262 . 263 24 201 284 126 . . . 196 103 . 39 265 301 244 343 Average Temperature 74 | 15 51 . . . 26 87 16 50 75 77 97 . 109 11 87 105 48 . . . 72 45 . 21 61 78 82 118 Received Heat Transfer 2691 | . 261 . . 6 129 171 39 54 315 72 27 . . 12 . 195 231 54 . . 50 27 . 150 33 469 194 202 Effects 3 | . . . . . . . . . . . . . . . . . . . . . . . . . . 1 1 1 Energy Bleed 3 | . . . . . . . . . . . . . . . . . . . . . . . . . . 1 1 1 Siege Activations . | . . . . . . . . . . . . . . . . . . . . . . . . . . . . . Martial Activations . | . . . . . . . . . . . . . . . . . . . . . . . . . . . . . Shielding Activations . | . . . . . . . . . . . . . . . . . . . . . . . . . . . . . Robots Disrupted . | . . . . . . . . . . . . . . . . . . . . . . . . . . . . . Combat Hostiles . | . . . . . . . . . . . . . . . . . . . . . . . . . . . . . Robots Corrupted 53 | . 1 . . . . . . . 1 3 1 . . . . 3 . . . . 3 3 . 2 7 16 13 . Combat Hostiles 52 | . 1 . . . . . . . 1 3 1 . . . . 2 . . . . 3 3 . 2 7 16 13 . Parts Fried 98 | 1 1 . . . . . . . 2 8 6 . . . . 9 5 . . . 3 1 . 1 13 23 20 5 Impact Corruptions . | . . . . . . . . . . . . . . . . . . . . . . . . . . . . . Robots Melted 6 | . . . . . . . . . . . . . . . . . . . . . 1 . . . . 3 1 1 Combat Hostiles 6 | . . . . . . . . . . . . . . . . . . . . . 1 . . . . 3 1 1 Parts Melted 33 | . . . . . . . . . . 1 . . . . . . . . . . 1 . . 2 8 15 3 3 Heat Transferred 9762 | . 385 . . . . . . . 50 100 50 . . . . 200 300 . . . 350 . 200 1876 1670 2650 932 999 Parts Sabotaged . | . . . . . . . . . . . . . . . . . . . . . . . . . . . . . Parts Stolen . | . . . . . . . . . . . . . . . . . . . . . . . . . . . . . Parts Stripped . | . . . . . . . . . . . . . . . . . . . . . . . . . . . . . Power Chain Reactions 13 | . 3 . . . . . . . 1 1 1 . . . . 2 3 . . . . . . . . 1 1 . Alert | -11 -10 -10 -10 -9 -8 -8 -8 -8 -7 -7 -7 -7 -6 -6 -6 -6 -6 -5 -5 -5 -5 -5 -5 -5 -4 -3 -3 -3 ------- Run | Yrd Mat Min Exi Min Mat Gar Mat Gar Fac Low Low Dat Pro Fac Was Fac Gar Fac Was Fac Ext Cet Arc Hub Fac Res Gar Res Maximum Alert Level 4 | . . . . . . 2 2 4 2 . . . . 2 . 1 2 2 . . 2 . . . 1 2 4 3 Low Security (%) 68 | 100 100 100 . 100 100 45 . . 78 . . . . 1 100 85 . . 100 100 74 100 100 100 81 72 . . Level 1 11 | . . . . . . 9 75 9 19 . . . . 59 . 14 28 86 . . 3 . . . 18 14 . . Level 2 15 | . . . . . . 44 25 27 1 . . . . 38 . . 71 13 . . 22 . . . . 12 59 86 Level 3 3 | . . . . . . . . 30 . . . . . . . . . . . . . . . . . . 39 13 Level 4 2 | . . . . . . . . 32 . . . . . . . . . . . . . . . . . . 1 . Level 5 . | . . . . . . . . . . . . . . . . . . . . . . . . . . . . . High Security . | . . . . . . . . . . . . . . . . . . . . . . . . . . . . . Max Security . | . . . . . . . . . . . . . . . . . . . . . . . . . . . . . Peak Influence 1316 | 5 89 56 . 74 169 642 486 1316 690 . . . . 450 68 298 664 416 128 14 483 169 143 160 293 574 1125 734 Initial 690 | . . 15 . . . . 312 309 690 . . . . 450 68 . 201 348 128 . . 60 23 . 78 131 426 632 Average 208 | 1 37 15 . 7 76 290 361 861 116 . . . . 371 11 83 507 340 25 1 125 109 59 35 135 166 685 641 Influence Increases 10709 | 20 326 56 . 79 581 682 244 1107 548 306 125 . 10 475 . 792 573 138 . 20 746 158 250 527 786 1099 739 322 Destroy 0b10 Robot/C 5520 | . 220 40 . 60 340 400 100 520 260 200 100 . . . . 460 340 80 . . 320 80 80 280 360 680 420 180 Destroy 0b10 Robot/NC 420 | 20 5 . . 5 50 15 10 35 75 . . . 10 5 . 40 40 . . . 30 5 30 . 15 25 . 5 Destroy Leader 930 | . 52 10 . 10 104 30 34 50 76 10 10 . . . . 134 30 10 . . 46 . . 50 82 132 40 20 Allied During Kill 699 | . . 6 . 4 40 42 49 56 1 6 . . . . . 5 14 . . . 253 64 110 49 . . . . Successful Hack 177 | . 4 . . . 13 . . 14 33 . . . . 3 . . . . . 14 14 9 . . 41 18 14 . Select Force Hacks 100 | . . . . . . . . . . . . . . . . . . . . . . . . 100 . . . . Disable Machine 330 | . 15 . . . 30 . 30 . 15 . . . . 15 . 60 . . . . 15 . 30 . 45 15 30 30 Anti-Garrison Action 550 | . . . . . . 150 . 250 . . . . . . . . 100 . . . . . . . . . 50 . Destroy Structure 663 | . 15 . . . 4 30 21 92 43 . . . . 2 . 33 34 48 . 6 38 . . 48 78 64 95 12 Advance Influence 450 | . . . . . . . . . . . . . . 450 . . . . . . . . . . . . . . Partial Spotted 30 | . . . . . . . . . 15 . . . . . . . . . . . . . . . . . . 15 Lose Combat Pursuer 840 | . 15 . . . . 15 . 90 30 90 15 . . . . 60 15 . . . 30 . . . 165 165 90 60 Influence Decreases 10083 | 20 287 69 26 79 581 40 410 267 1743 353 192 7 10 280 195 504 197 436 366 20 637 209 308 367 696 781 182 821 Entered New Map 2929 | . . 24 26 . . . 330 167 626 46 15 7 . . 127 . 87 316 238 . . 49 35 . 82 119 142 493 Time Decay 5227 | 20 257 45 . 79 468 . 50 . 622 237 177 . 10 180 68 474 . 100 128 20 277 140 233 208 594 602 . 238 Search Patrol Dispatched 100 | . . . . . . . . . . . . . . 100 . . . . . . . . . . . . . . Lost Part 390 | . 30 . . . . . 10 40 10 30 . . . . . 10 30 20 . . . . . . 20 60 40 90 Lost Ally 639 | . . . . . 40 40 20 60 60 40 . . . . . 20 80 . . . 60 20 40 159 . . . . Purge Threat 798 | . . . . . 73 . . . 425 . . . . . . . . . . . 300 . . . . . . . Squads Dispatched 48 | . 1 . . . 2 . . . 9 . . . . 1 . 10 . 2 . . 2 . . 5 6 8 . 2 Investigation 10 | . . . . . 1 . . . . . . . . 1 . 1 . 1 . . 1 . . 2 2 1 . . Extermination 22 | . . . . . . . . . 5 . . . . . . 6 . . . . . . . 2 4 4 . 1 Reinforcement 11 | . 1 . . . 1 . . . 1 . . . . . . 3 . 1 . . 1 . . 1 . 2 . . Assault 2 | . . . . . . . . . . . . . . . . . . . . . . . . . . 1 . 1 Garrison 3 | . . . . . . . . . 3 . . . . . . . . . . . . . . . . . . . Intercept . | . . . . . . . . . . . . . . . . . . . . . . . . . . . . . Searches Triggered 1 | . . . . . . . . . . . . . . 1 . . . . . . . . . . . . . . Data Miner Redirects 1 | . . . . . . . . . . . . . . . . . . . . . 1 . . . . . . . Construction Impeded 3 | . . . . . . . . . . . . . . . . 1 . 1 . . . . . 1 . . . . Haulers Reinforced 1 | . . . . . . . . . . . . . . . . 1 . . . . . . . . . . . . Active Scanning Responses . | . . . . . . . . . . . . . . . . . . . . . . . . . . . . . Cargo Convoy Interrupts . | . . . . . . . . . . . . . . . . . . . . . . . . . . . . . Stealth | -11 -10 -10 -10 -9 -8 -8 -8 -8 -7 -7 -7 -7 -6 -6 -6 -6 -6 -5 -5 -5 -5 -5 -5 -5 -4 -3 -3 -3 --------- Run | Yrd Mat Min Exi Min Mat Gar Mat Gar Fac Low Low Dat Pro Fac Was Fac Gar Fac Was Fac Ext Cet Arc Hub Fac Res Gar Res Distress Signals 17 | . 2 . . . 3 . 3 . . . . . . . . . . . . . 1 1 . 3 . 3 . 1 Communications Jammed . | . . . . . . . . . . . . . . . . . . . . . . . . . . . . . Distress Signals . | . . . . . . . . . . . . . . . . . . . . . . . . . . . . . Times Spotted 413 | . 20 2 . 3 25 20 7 26 26 15 9 . 2 1 6 41 27 10 . . 19 4 15 26 19 42 22 26 Peak Tracking Total 13 | . 4 2 . 2 4 9 5 13 5 7 3 . 2 1 2 7 8 5 . . 5 5 1 7 4 9 11 11 Tactical Retreats 31 | . 1 . . . . 1 . 1 2 3 2 . . . . 2 1 . . . 2 . . . 4 8 2 2 ECM-based Alert Blocks 3 | . . . . . . . . . . . 3 . . . . . . . . . . . . . . . . . Traps | -11 -10 -10 -10 -9 -8 -8 -8 -8 -7 -7 -7 -7 -6 -6 -6 -6 -6 -5 -5 -5 -5 -5 -5 -5 -4 -3 -3 -3 ------- Run | Yrd Mat Min Exi Min Mat Gar Mat Gar Fac Low Low Dat Pro Fac Was Fac Gar Fac Was Fac Ext Cet Arc Hub Fac Res Gar Res Traps Triggered 59 | . . . . . . 5 . 10 2 . . . . 4 . 2 6 4 . . 10 . . . 4 5 5 2 Indirectly 8 | . . . . . . . . . . . . . . . . . . . . . 5 . . . . . 3 . Trap Hack Attempts . | . . . . . . . . . . . . . . . . . . . . . . . . . . . . . Triggered . | . . . . . . . . . . . . . . . . . . . . . . . . . . . . . Disarmed . | . . . . . . . . . . . . . . . . . . . . . . . . . . . . . Reprogrammed . | . . . . . . . . . . . . . . . . . . . . . . . . . . . . . Reused . | . . . . . . . . . . . . . . . . . . . . . . . . . . . . . Traps Extracted . | . . . . . . . . . . . . . . . . . . . . . . . . . . . . . Installed . | . . . . . . . . . . . . . . . . . . . . . . . . . . . . . Triggered . | . . . . . . . . . . . . . . . . . . . . . . . . . . . . . Machines | -11 -10 -10 -10 -9 -8 -8 -8 -8 -7 -7 -7 -7 -6 -6 -6 -6 -6 -5 -5 -5 -5 -5 -5 -5 -4 -3 -3 -3 ---------- Run | Yrd Mat Min Exi Min Mat Gar Mat Gar Fac Low Low Dat Pro Fac Was Fac Gar Fac Was Fac Ext Cet Arc Hub Fac Res Gar Res Machines Disabled 30 | . 1 . . . 2 . 2 2 1 1 1 . . 1 . 4 2 . . . 1 . 2 . 3 1 4 2 Max in Single Turn 2 | . 1 . . . 1 . . 1 1 1 1 . . 1 . 2 1 . . . 1 . . . 1 1 2 1 Garrison Access 7 | . . . . . . . . . 1 . . . . 1 . . . 1 . 1 . . . . 1 1 . 1 Garrison Relay 4 | . . . . . . . . 2 . . . . . . . . 2 . . . . . . . . . . . Phase Generator 1 | . . . . . . . . . . . . . . . . . . . . . . . . . . . 1 . Network Hub 2 | . . . . . . . . . . . . . . . . . . . . . . . . 2 . . . . Machines Repaired . | . . . . . . . . . . . . . . . . . . . . . . . . . . . . . Machines Dismantled . | . . . . . . . . . . . . . . . . . . . . . . . . . . . . . Machines Sabotaged 2 | . . . . . . . . . . . . . . . . . . . . . . . . 2 . . . . Overloaded Fab Kills . | . . . . . . . . . . . . . . . . . . . . . . . . . . . . . Hacking | -11 -10 -10 -10 -9 -8 -8 -8 -8 -7 -7 -7 -7 -6 -6 -6 -6 -6 -5 -5 -5 -5 -5 -5 -5 -4 -3 -3 -3 --------- Run | Yrd Mat Min Exi Min Mat Gar Mat Gar Fac Low Low Dat Pro Fac Was Fac Gar Fac Was Fac Ext Cet Arc Hub Fac Res Gar Res Machines Accessed 72 | . 4 . 1 1 7 2 2 3 13 . . 4 . 4 . 2 1 2 . 4 5 1 . 2 7 4 2 1 Terminals 36 | . 4 . . . 4 2 1 3 5 . . . . . . . 1 . . 2 5 1 . 2 3 1 2 . Fabricators 9 | . . . . . . . . . 5 . . . . 2 . 1 . . . . . . . . 1 . . . Repair Stations 8 | . . . . . 1 . . . 2 . . . . 1 . . . 1 . 1 . . . . 2 . . . Recycling Units . | . . . . . . . . . . . . . . . . . . . . . . . . . . . . . Scanalyzers 2 | . . . . . 1 . . . . . . . . . . . . . . . . . . . . 1 . . Garrison Access 11 | . . . . . 1 . 1 . 1 . . . . 1 . 1 . 1 . 1 . . . . 1 2 . 1 Total Hacks 175 | . 19 . 1 1 19 5 2 4 31 . . 26 . 7 . 3 2 3 . 6 10 1 . 2 21 8 3 1 Successful 104 | . 13 . 1 1 12 . 1 1 16 . . 26 . 5 . 1 . 2 . 3 5 1 . 2 9 3 1 1 Failed 69 | . 5 . . . 7 5 1 3 15 . . . . 2 . 2 2 1 . 3 5 . . . 12 4 2 . Catastrophic 22 | . 1 . . . 2 . 1 1 5 . . . . 1 . 1 1 . . . 2 . . . 3 3 1 . Database Lockouts 2 | . 1 . . . . . . . . . . . . . . . . . . . . . . . . 1 . . Manual 65 | . 14 . . . 8 . . . 14 . . . . 2 . . . . . 1 8 1 . 2 14 1 . . Terminals 84 | . 19 . . . 10 5 1 4 11 . . . . . . . 2 . . 4 10 1 . 2 11 1 3 . Fabricators 24 | . . . . . . . . . 15 . . . . 3 . 2 . . . . . . . . 4 . . . Repair Stations 17 | . . . . . 3 . . . 4 . . . . 2 . . . 2 . 1 . . . . 5 . . . Recycling Units . | . . . . . . . . . . . . . . . . . . . . . . . . . . . . . Scanalyzers 10 | . . . . . 5 . . . . . . . . . . . . . . . . . . . . 5 . . Garrison Access 12 | . . . . . 1 . 1 . 1 . . . . 2 . 1 . 1 . 1 . . . . 1 2 . 1 Terminal Hacks 49 | . 5 . 1 1 3 . . 1 4 . . 26 . . . . . . . 1 4 1 . . 1 . 1 . Record 12 | . . . 1 . . . . . . . . 11 . . . . . . . . . . . . . . . . Part Schematic 8 | . . . . . . . . . . . . 8 . . . . . . . . . . . . . . . . Robot Schematic 4 | . . . . . . . . . . . . 4 . . . . . . . . . . . . . . . . Robot Analysis 1 | . 1 . . . . . . . . . . . . . . . . . . . . . . . . . . . Prototype ID Bank 6 | . 2 . . . 1 . . . . . . 3 . . . . . . . . . . . . . . . . Open Door 3 | . . . . 1 . . . . . . . . . . . . . . . 1 . 1 . . . . . . Branch Access Points 1 | . . . . . . . . . 1 . . . . . . . . . . . . . . . . . . . Emergency Access Points 2 | . . . . . . . . 1 . . . . . . . . . . . . . . . . . . 1 . Terminal Index 1 | . . . . . . . . . . . . . . . . . . . . . . . . . 1 . . . Alert Level 1 | . . . . . 1 . . . . . . . . . . . . . . . . . . . . . . . Unreport Threat 4 | . . . . . 1 . . . 1 . . . . . . . . . . . 2 . . . . . . . Locate Traps 4 | . 2 . . . . . . . 2 . . . . . . . . . . . . . . . . . . . Patrol Status 1 | . . . . . . . . . . . . . . . . . . . . . 1 . . . . . . . Zone Layout 1 | . . . . . . . . . . . . . . . . . . . . . 1 . . . . . . . Fabricator Hacks 5 | . . . . . . . . . 3 . . . . 1 . . . . . . . . . . 1 . . . Network Status 4 | . . . . . . . . . 2 . . . . 1 . . . . . . . . . . 1 . . . Build 1 | . . . . . . . . . 1 . . . . . . . . . . . . . . . . . . . Repair Station Hacks 13 | . . . . . 2 . . . 4 . . . . 2 . . . 1 . . . . . . 4 . . . Scan Component 7 | . . . . . 1 . . . 2 . . . . 1 . . . 1 . . . . . . 2 . . . Repair 6 | . . . . . 1 . . . 2 . . . . 1 . . . . . . . . . . 2 . . . Recycling Unit Hacks . | . . . . . . . . . . . . . . . . . . . . . . . . . . . . . Scanalyzer 5 | . . . . . 4 . . . . . . . . . . . . . . . . . . . . 1 . . Retrieve Study 5 | . . . . . 4 . . . . . . . . . . . . . . . . . . . . 1 . . Garrison Access Hacks 12 | . . . . . 1 . 1 . 1 . . . . 2 . 1 . 1 . 1 . . . . 1 2 . 1 Unlock Access 4 | . . . . . 1 . 1 . . . . . . . . 1 . . . . . . . . . 1 . . Seal Access 7 | . . . . . . . . . 1 . . . . 1 . . . 1 . 1 . . . . 1 1 . 1 Coupler Status 1 | . . . . . . . . . . . . . . 1 . . . . . . . . . . . . . . Unauthorized Hacks 20 | . 8 . . . 2 . . . 4 . . . . . . . . . . 1 1 . . 2 2 . . . Terminals 15 | . 8 . . . 2 . . . . . . . . . . . . . . 1 1 . . 2 1 . . . Botnet 9 | . 4 . . . 2 . . . . . . . . . . . . . . 1 1 . . . 1 . . . Skim 4 | . 4 . . . . . . . . . . . . . . . . . . . . . . . . . . . Sabotage 2 | . . . . . . . . . . . . . . . . . . . . . . . . 2 . . . . Fabricators 5 | . . . . . . . . . 4 . . . . . . . . . . . . . . . 1 . . . Report 1 | . . . . . . . . . 1 . . . . . . . . . . . . . . . . . . . Fabnet 3 | . . . . . . . . . 2 . . . . . . . . . . . . . . . 1 . . . Haulers 1 | . . . . . . . . . 1 . . . . . . . . . . . . . . . . . . . Repair Stations . | . . . . . . . . . . . . . . . . . . . . . . . . . . . . . Recycling Units . | . . . . . . . . . . . . . . . . . . . . . . . . . . . . . Scanalyzers . | . . . . . . . . . . . . . . . . . . . . . . . . . . . . . Garrison Access . | . . . . . . . . . . . . . . . . . . . . . . . . . . . . . Data Cores Recovered . | . . . . . . . . . . . . . . . . . . . . . . . . . . . . . Used . | . . . . . . . . . . . . . . . . . . . . . . . . . . . . . Hacking Detections 48 | . 4 . . . 6 2 1 3 10 . . . . 2 . 2 1 1 . 2 5 . . . 5 3 1 . Full Trace Events 2 | . . . . . . 1 . 1 . . . . . . . . . . . . . . . . . . . . Feedback Events 1 | . . . . . . 1 . . . . . . . . . . . . . . . . . . . . . . Corruption 1 | . . . . . . 1 . . . . . . . . . . . . . . . . . . . . . . Feedback Blocked . | . . . . . . . . . . . . . . . . . . . . . . . . . . . . . Robot Schematics Acquired 4 | . . . . . . . . . . . . 4 . . . . . . . . . . . . . . . . Robots Built . | . . . . . . . . . . . . . . . . . . . . . . . . . . . . . Authchips . | . . . . . . . . . . . . . . . . . . . . . . . . . . . . . Time . | . . . . . . . . . . . . . . . . . . . . . . . . . . . . . Total Robot Build Rating . | . . . . . . . . . . . . . . . . . . . . . . . . . . . . . Part Schematics Acquired 8 | . . . . . . . . . . . . 8 . . . . . . . . . . . . . . . . Parts Built 2 | . . . . . . . . . 2 . . . . . . . . . . . . . . . . . . . Authchips . | . . . . . . . . . . . . . . . . . . . . . . . . . . . . . Time 47 | . . . . . . . . . 47 . . . . . . . . . . . . . . . . . . . Total Part Build Rating 10 | . . . . . . . . . 10 . . . . . . . . . . . . . . . . . . . Part Studies Acquired 5 | . . . . . 4 . . . . . . . . . . . . . . . . . . . . 1 . . Parts Repaired 6 | . . . . . 1 . . . 2 . . . . 1 . . . . . . . . . . 2 . . . Time 276 | . . . . . 32 . . . 88 . . . . 38 . . . . . . . . . . 118 . . . Parts Recycled . | . . . . . . . . . . . . . . . . . . . . . . . . . . . . . Recycled Matter . | . . . . . . . . . . . . . . . . . . . . . . . . . . . . . Retrieved Matter . | . . . . . . . . . . . . . . . . . . . . . . . . . . . . . Retrieved Components . | . . . . . . . . . . . . . . . . . . . . . . . . . . . . . Parts Scanalyzed . | . . . . . . . . . . . . . . . . . . . . . . . . . . . . . Part Schematics Acquired . | . . . . . . . . . . . . . . . . . . . . . . . . . . . . . Parts Damaged . | . . . . . . . . . . . . . . . . . . . . . . . . . . . . . Bothacking | -11 -10 -10 -10 -9 -8 -8 -8 -8 -7 -7 -7 -7 -6 -6 -6 -6 -6 -5 -5 -5 -5 -5 -5 -5 -4 -3 -3 -3 ------------ Run | Yrd Mat Min Exi Min Mat Gar Mat Gar Fac Low Low Dat Pro Fac Was Fac Gar Fac Was Fac Ext Cet Arc Hub Fac Res Gar Res Used RIF Installer 3 | . . . . . . 1 . . . . . . . . . . 1 . . . . . . . . . 1 . Hotswap 1 | . . . . . . . . . . . . . . . . . 1 . . . . . . . . . . . Zone Cloak 1 | . . . . . . . . . . . . . . . . . . . . . . . . . . . 1 . Robots Hacked 40 | . . . . . . . . . 5 2 1 . 1 . 6 5 8 3 . 1 3 . . 3 . 2 . . Non-combat 11 | . . . . . . . . . 3 . . . 1 . . . . 2 . 1 1 . . 1 . 2 . . Combat 29 | . . . . . . . . . 2 2 1 . . . 6 5 8 1 . . 2 . . 2 . . . . Robot Hacks Applied 38 | . . . . . . . . . 7 2 1 . 1 . 6 4 5 4 . 1 2 . . 3 . 2 . . parse_system 2 | . . . . . . . . . . . . . 1 . . . . 1 . . . . . . . . . . find_chute 1 | . . . . . . . . . . . . . . . . . . 1 . . . . . . . . . . drop_inventory 6 | . . . . . . . . . 1 . . . . . . . . 1 . . 1 . . 1 . 2 . . check_alert 1 | . . . . . . . . . 1 . . . . . . . . . . . . . . . . . . . purge_threat 2 | . . . . . . . . . 2 . . . . . . . . . . . . . . . . . . . block_reporting 1 | . . . . . . . . . 1 . . . . . . . . . . . . . . . . . . . ignore_targets 6 | . . . . . . . . . . . . . . . 6 . . . . . . . . . . . . . disable_weapons 6 | . . . . . . . . . 2 . 1 . . . . 1 . 1 . . 1 . . . . . . . overwrite_iff 11 | . . . . . . . . . . 2 . . . . . 3 5 . . . . . . 1 . . . . formatsys_low 1 | . . . . . . . . . . . . . . . . . . . . 1 . . . . . . . . formatsys_high 1 | . . . . . . . . . . . . . . . . . . . . . . . . 1 . . . . Relay Couplers Released 29 | . . . . . . . . 14 2 . . . . 1 . . 8 . . . . . . . 3 . . 1 Machine Destruction 25 | . . . . . . . . 10 2 . . . . 1 . . 8 . . . . . . . 3 . . 1 Programmers 4 | . . . . . . . . 4 . . . . . . . . . . . . . . . . . . . . Attached 11 | . . . . . . . . . 2 1 1 . . 1 1 . 3 1 . . . . . . . 1 . . Fabnet Peak Effective % 6 | . . . . . . . . . . . . . 6 6 6 6 6 2 2 2 2 2 2 2 . . . . Autooverrided 5 | . . . . . . . . . . . . . . . . 1 3 . . . 1 . . . . . . . Robots Rewired 19 | . . . . . . 9 . 4 . 2 . . . . . . . . . . 4 . . . . . . . Allies Hacked 1 | . . . . . . . . . 1 . . . . . . . . . . . . . . . . . . . Hacks Repelled . | . . . . . . . . . . . . . . . . . . . . . . . . . . . . . Allies | -11 -10 -10 -10 -9 -8 -8 -8 -8 -7 -7 -7 -7 -6 -6 -6 -6 -6 -5 -5 -5 -5 -5 -5 -5 -4 -3 -3 -3 -------- Run | Yrd Mat Min Exi Min Mat Gar Mat Gar Fac Low Low Dat Pro Fac Was Fac Gar Fac Was Fac Ext Cet Arc Hub Fac Res Gar Res Total Allies 56 | . . 2 . 4 . 9 . 4 . 4 . . . . . 4 8 . . 1 13 5 . 2 . . . . Largest Group 14 | . . 2 2 3 3 7 7 4 4 2 . . . . . 1 3 . . 1 10 14 14 11 . . . . Highest-Rated Group 850 | . . 45 45 40 40 170 170 110 86 49 . . . . . 41 53 . . 23 406 850 850 656 . . . . Highest-Rated Ally 159 | . . 31 31 31 16 40 40 40 25 49 . . . . . 41 29 . . 23 159 146 146 96 . . . . Total Orders 14 | . . . . . . 2 . 4 . . . . . . . . . . . 1 6 . 1 . . . . . STAY 5 | . . . . . . 1 . 3 . . . . . . . . . . . . 1 . . . . . . . FOLLOW 3 | . . . . . . 1 . 1 . . . . . . . . . . . . 1 . . . . . . . AID 4 | . . . . . . . . . . . . . . . . . . . . 1 2 . 1 . . . . . EXPLORE 2 | . . . . . . . . . . . . . . . . . . . . . 2 . . . . . . . Ally Attacks 431 | . . 5 . 7 43 24 15 18 2 6 . . . . . 14 27 . . . 148 21 37 64 . . . . Total Damage 8028 | . . 105 . 106 418 210 491 422 42 162 . . . . . 247 389 . . . 2798 405 837 1396 . . . . Kills 54 | . . . . 3 6 2 7 6 . 2 . . . . . 1 3 . . . 17 1 3 3 . . . . Allies Corrupted 9 | . . . . . . 1 . . . . . . . . . 1 . . . . . . . 7 . . . . Allies Melted . | . . . . . . . . . . . . . . . . . . . . . . . . . . . . . Intel | -11 -10 -10 -10 -9 -8 -8 -8 -8 -7 -7 -7 -7 -6 -6 -6 -6 -6 -5 -5 -5 -5 -5 -5 -5 -4 -3 -3 -3 ------- Run | Yrd Mat Min Exi Min Mat Gar Mat Gar Fac Low Low Dat Pro Fac Was Fac Gar Fac Was Fac Ext Cet Arc Hub Fac Res Gar Res Active Infowar (turns) 17618 | 16 634 170 234 774 1413 1247 . 1178 2109 323 33 . . 274 6 1908 56 . . 232 1210 . 91 418 1935 2344 539 474 Optics 8788 | . . . . . . . . 1178 2109 323 . . . . . . . . . . . . . . 1821 2344 539 474 Sensors 10208 | . . . . . . . . . 1663 . . . . 274 6 1908 55 . . 232 1210 . 91 418 1755 2122 . 474 Seismic 4763 | 16 634 170 234 774 1413 280 . 1027 215 . . . . . . . . . . . . . . . . . . . T.N.C. 371 | . . . . . 371 . . . . . . . . . . . . . . . . . . . . . . . Machine Analysis 2541 | . . . . . 1294 1247 . . . . . . . . . . . . . . . . . . . . . . Jamming 1 | . . . . . . . . . . . . . . . . . . . . . . . . . . 1 . . ECM 42 | . . . . . . . . . . . 33 . . . . 8 1 . . . . . . . . . . . Robot Analysis Total 1 | . 1 . . . . . . . . . . . . . . . . . . . . . . . . . . . Derelict Logs Recovered 3 | . . . . 2 . . . . . . . . 1 . . . . . . . . . . . . . . . Drone Launches 16 | . . . . . . . . . . . . . . . . . . . . . 16 . . . . . . . Drone Recoveries . | . . . . . . . . . . . . . . . . . . . . . . . . . . . . . Exploration | -11 -10 -10 -10 -9 -8 -8 -8 -8 -7 -7 -7 -7 -6 -6 -6 -6 -6 -5 -5 -5 -5 -5 -5 -5 -4 -3 -3 -3 ------------- Run | Yrd Mat Min Exi Min Mat Gar Mat Gar Fac Low Low Dat Pro Fac Was Fac Gar Fac Was Fac Ext Cet Arc Hub Fac Res Gar Res Turns Passed 23367 | 144 887 184 234 798 1413 1275 104 1330 2109 848 418 104 373 367 453 1926 1023 218 695 233 1316 292 623 679 1935 2344 539 503 Spaces Moved 12772 | 67 415 87 145 473 881 742 64 815 1243 536 280 81 190 244 256 963 554 139 443 136 711 105 258 316 1046 1068 247 267 Core 51 | 2 . . . . . . . . . . . . . . . . . . . . . . . . . . . 49 Treads 1411 | 65 415 87 145 473 226 . . . . . . . . . . . . . . . . . . . . . . . Legs . | . . . . . . . . . . . . . . . . . . . . . . . . . . . . . Wheels 11310 | . . . . . 655 742 64 815 1243 536 280 81 190 244 256 963 554 139 443 136 711 105 258 316 1046 1068 247 218 Hover . | . . . . . . . . . . . . . . . . . . . . . . . . . . . . . Flight . | . . . . . . . . . . . . . . . . . . . . . . . . . . . . . Fastest Speed 50 | 50 160 160 160 160 120 120 120 105 130 130 130 130 130 130 130 145 130 130 130 145 145 160 130 145 130 160 160 50 Average Speed 142 | 156 160 160 160 160 130 120 120 120 130 130 130 130 130 130 138 153 135 130 143 145 157 160 139 145 152 163 160 133 Slowest Speed 240 | 160 160 160 160 160 240 120 120 130 130 145 130 130 130 130 145 160 160 130 145 160 160 160 160 160 160 175 175 160 Overloaded Moves . | . . . . . . . . . . . . . . . . . . . . . . . . . . . . . Propulsion Burnouts . | . . . . . . . . . . . . . . . . . . . . . . . . . . . . . Robots Hopped . | . . . . . . . . . . . . . . . . . . . . . . . . . . . . . Potential Cave-ins 1 | . . . . . . . . . . 1 . . . . . . . . . . . . . . . . . . Cave-ins Triggered 1 | . . . . . . . . . . 1 . . . . . . . . . . . . . . . . . . Exploration Rate (%) 48 | 5 82 24 51 97 58 63 13 78 40 58 43 68 45 11 91 34 71 5 97 4 81 56 91 32 29 35 35 12 Regions Visited 28 Branch Regions 11 Pre-discovered Areas 4 | . . . 1 1 . . . . . . . 1 1 . . . . . . . . . . . . . . . Known Exits Taken 12 | . . . . . 1 . 1 . 1 . . . 1 . . 1 . . . 1 1 1 1 1 1 1 . . Unknown Exits Taken 8 | 1 1 1 1 1 . . . . . 1 1 1 . . . . . . . . . . . . . . . . Scrap Searched 5 | . . . . 1 . . . . . 2 2 . . . . . . . . . . . . . . . . . Spaces Dug 127 | . . . . . 2 8 1 . 21 11 . . . 2 . 15 . . . 3 3 . . 4 22 29 . 6 Terrain Destroyed 415 | . 14 . . . 2 15 1 43 43 23 28 . . 2 . 34 15 27 . 3 5 . . 15 40 41 58 6 Melee 56 | . . . . . 2 8 1 . 19 . . . . 2 . 13 . . . 3 . . . 2 6 . . . Projectile 115 | . . . . . . . . . 2 18 . . . . . 3 . . . . 5 . . 13 32 35 1 6 AOE 238 | . 14 . . . . 7 . 43 22 5 28 . . . . 18 15 27 . . . . . . . 3 56 . Terrain Rammed . | . . . . . . . . . . . . . . . . . . . . . . . . . . . . . Walls Destroyed . | . . . . . . . . . . . . . . . . . . . . . . . . . . . . . Machines Disabled . | . . . . . . . . . . . . . . . . . . . . . . . . . . . . . Actions | -11 -10 -10 -10 -9 -8 -8 -8 -8 -7 -7 -7 -7 -6 -6 -6 -6 -6 -5 -5 -5 -5 -5 -5 -5 -4 -3 -3 -3 --------- Run | Yrd Mat Min Exi Min Mat Gar Mat Gar Fac Low Low Dat Pro Fac Was Fac Gar Fac Was Fac Ext Cet Arc Hub Fac Res Gar Res Total 16897 | 90 557 123 148 512 1068 1036 85 1091 1616 643 313 80 313 284 316 1280 716 170 487 165 873 228 498 454 1371 1663 361 356 Wait 1718 | . 39 28 . 25 69 76 15 48 167 33 7 . 120 23 2 142 4 1 . 19 61 112 201 7 153 324 36 6 Move 12748 | 66 414 86 144 472 881 741 63 814 1242 534 279 80 189 244 255 963 553 139 442 135 710 104 257 315 1045 1068 246 267 Hop . | . . . . . . . . . . . . . . . . . . . . . . . . . . . . . Pick Up 174 | 9 24 1 2 1 22 3 . 13 14 1 1 . . 2 1 12 8 . 7 . 4 2 2 11 12 8 4 10 Fast Attach 54 | 4 . . . . 4 . . 4 3 3 . . . 2 2 2 5 2 3 . . . 4 2 5 4 3 2 Attach 93 | 3 4 . . . 2 1 1 3 6 3 1 . . . . 5 5 1 1 . 3 . 2 7 11 20 9 5 Detach 45 | . . . . . 1 1 . 2 1 1 . . . . 2 2 . 1 1 . 1 . 2 . 9 18 3 . Swap 276 | . 10 2 . 5 15 12 1 14 55 5 9 . . 3 7 28 11 3 5 5 10 3 2 18 19 23 2 9 Drop 152 | . 14 1 2 4 23 4 . 11 22 . . . . 1 4 9 7 . 11 . 3 3 4 12 6 11 . . Fire 953 | 8 51 4 . . 49 45 4 36 74 42 16 . 4 6 8 84 42 7 . 3 31 4 6 60 104 178 50 37 Melee 280 | . . . . . 2 38 1 29 32 . . . . 3 35 33 41 . 16 3 . . 18 22 7 . . . Ram 5 | . . . . . . . . . . . . . . . . . . . . . . . . . . 1 . 4 Kick . | . . . . . . . . . . . . . . . . . . . . . . . . . . . . . Crush 7 | . 1 1 . 5 . . . . . . . . . . . . . . . . . . . . . . . . Escape Stasis 209 | . . . . . . 40 . 72 . 1 . . . . . . 40 16 . . 8 . . . . 8 8 16 Rewire 183 | . . . . . . 75 . 45 . 20 . . . . . . . . 1 . 42 . . . . . . . Trap . | . . . . . . . . . . . . . . . . . . . . . . . . . . . . . Miscellaneous . | . . . . . . . . . . . . . . . . . . . . . . . . . . . . . Route ------- -11/Scrapyard -10/Materials (discovered 4 exits: [*Mat x2] / [*Min x2]) -10/Mines (discovered 2 exits: [*Mat] / *Exi) -10/Exiles -9/Mines (discovered 2 exits: *Mat x2) -8/Materials (discovered 3 exits: *Fac / [*Sto] / Gar) -8/Garrison (discovered 2 exits: *Mat x2) -8/Materials -8/Garrison (discovered 3 exits: *Fac x3) -7/Factory (discovered 3 exits: *Fac / *Low x2) -7/Lower Caves -7/Lower Caves -7/Data Miner -6/Proximity Caves -6/Factory -6/Waste -6/Factory (discovered 3 exits: *Fac / *Low / Gar) -6/Garrison (discovered 3 exits: *Fac x3) -5/Factory -5/Waste -5/Factory -5/Extension (discovered 2 exits: *Fac / *Cet) -5/Cetus -5/Archives (discovered 3 exits: *Fac / *Hub x2) -5/Hub_04(d) -4/Factory (discovered 3 exits: *Res x2 / *Upp) -3/Research (discovered 2 exits: *Res / Gar) -3/Garrison -3/Research History --------- Turn | Location | Event 49 | -11/Scrapyard | Discovered new exit (range 14) 145 | -11/Scrapyard | Entered Materials 309 | -10/Materials | Build established: Mutant 380 | -10/Materials | Discovered new exit (range 10) 408 | -10/Materials | Central database locked down 452 | -10/Materials | Discovered new exit (range 11) 646 | -10/Materials | Discovered new exit (range 15) 845 | -10/Materials | Core integrity fell below 50% 928 | -10/Materials | Discovered new exit (range 15) 1032 | -10/Materials | Entered Mines 1033 | -10/Mines | Assembled infested the area 1114 | -10/Mines | Discovered new exit (range 7) 1117 | -10/Mines | A weapon hastily lodged in a ceiling crevice suddenly fell to the ground 1181 | -10/Mines | Deemed a non-threat by the Exiles lab entrance 1181 | -10/Mines | Discovered new exit (range 5) 1216 | -10/Mines | Entered Exiles 1216 | -10/Exiles | Accompanied by 2 allies 1246 | -10/Exiles | Led the pair of lost Derelicts to a safe place 1260 | -10/Exiles | Met 8R-AWN 1284 | -10/Exiles | Met EX-HEX 1332 | -10/Exiles | Met EX-BIN 1352 | -10/Exiles | Met EX-DEC 1359 | -10/Exiles | Learned location of Zion (-6) 1431 | -10/Exiles | Discovered new exit (range 14) 1450 | -10/Exiles | Entered Mines 1547 | -9/Mines | Discovered new exit (range 5) 1548 | -9/Mines | Received a Mining Laser from a helpful Derelict 1782 | -9/Mines | Learned Materials stockpile data 1822 | -9/Mines | Assisted by bots powering up and referring to "LRC-V3" 1984 | -9/Mines | Build established: Scavenger-Mutant 2159 | -9/Mines | Found the Drone Emporium 2167 | -9/Mines | Found Prototype Device 2229 | -9/Mines | Discovered new exit (range 9) 2248 | -9/Mines | Entered Materials 2248 | -8/Materials | Accompanied by 3 allies 2248 | -8/Materials | Evolved 4 slots: Utility x4 2830 | -8/Materials | Discovered new exit (range 9) 2999 | -8/Materials | Repaired Hrd. Light Armor Plating 3068 | -8/Materials | Build established: Mutant 3219 | -8/Materials | Discovered new exit (range 12) 3661 | -8/Materials | Identified exit to Garrison 3661 | -8/Materials | Entered Garrison 3671 | -8/Garrison | Triggered checkpoint 3905 | -8/Garrison | Triggered checkpoint 4093 | -8/Garrison | Discovered new exit (range 11) 4680 | -8/Garrison | Triggered checkpoint 4743 | -8/Garrison | Build established: Commander-Mutant 4877 | -8/Garrison | Discovered new exit (range 10) 4908 | -8/Garrison | Installed Relay Interface Framework 4926 | -8/Garrison | Identified exit to Materials 4936 | -8/Garrison | Entered Materials 4936 | -8/Materials | Accompanied by 7 allies 5029 | -8/Materials | Identified exit to Garrison 5040 | -8/Materials | Entered Garrison 5040 | -8/Garrison | Accompanied by 4 allies 5045 | -8/Garrison | Lost 3 allies 5148 | -8/Garrison | Triggered checkpoint 5162 | -8/Garrison | Triggered checkpoint 5167 | -8/Garrison | P-60 Hacker assimilated allied Marksman 3c 5197 | -8/Garrison | Lost 3 allies 5209 | -8/Garrison | Destroyed 9 combat bots 5261 | -8/Garrison | Discovered new exit (range 12) 5485 | -8/Garrison | Discovered new exit (range 12) 5508 | -8/Garrison | Garrison Relay disabled 5552 | -8/Garrison | Identified exit to Factory 5632 | -8/Garrison | Build established: Mutant 5733 | -8/Garrison | Garrison Relay disabled 5922 | -8/Garrison | Triggered checkpoint 6001 | -8/Garrison | Discovered exit to Factory (range 10) 6019 | -8/Garrison | Build established: Scavenger-Mutant 6294 | -8/Garrison | Triggered checkpoint 6370 | -8/Garrison | Entered Factory 6370 | -7/Factory | Accompanied by 4 allies 6370 | -7/Factory | Evolved 2 slots: Utility x2 6722 | -7/Factory | P-60 Hacker assimilated allied KW-7F8(l) 6758 | -7/Factory | Lost 3 allies 6813 | -7/Factory | Garrison activated, responded to threat 6945 | -7/Factory | Fabricated Phase Cannon (x2) 7463 | -7/Factory | Repaired Arm. Huge Wheel 7742 | -7/Factory | Identified exit to Lower Caves 7923 | -7/Factory | Build established: Bothacker-Assassin 8031 | -7/Factory | Repaired Arm. Huge Wheel 8166 | -7/Factory | Discovered new exit (range 5) 8171 | -7/Factory | Identified exit to Factory 8479 | -7/Factory | Entered Lower Caves 8491 | -7/Lower Caves | Attracted the attention of an 0b10 outpost 8573 | -7/Lower Caves | Identified Bomb Drone Bay 8680 | -7/Lower Caves | Spotted B-75 Beast 8748 | -7/Lower Caves | Build established: Bothacker-Mutant 8802 | -7/Lower Caves | Crushed by falling debris 8803 | -7/Lower Caves | System corruption reached 10% 9324 | -7/Lower Caves | Discovered new exit (range 2) 9327 | -7/Lower Caves | Entered another Lower Caves area 9597 | -7/Lower Caves | Encountered a Warlord checkpoint 9737 | -7/Lower Caves | Discovered new exit (range 8) 9745 | -7/Lower Caves | Entered Data Miner 9745 | -7/Data Miner | Discovered new exit (range 6) 9770 | -7/Data Miner | Met Data Miner 9794 | -7/Data Miner | Learned location of Section 7 (-2) 9794 | -7/Data Miner | Acquired the access code to Warlord's prototype stash 9820 | -7/Data Miner | Received God Mode back door access code from Data Miner 9849 | -7/Data Miner | Entered Proximity Caves 9851 | -6/Proximity Caves | Spotter reported a threat 9852 | -6/Proximity Caves | Spotter reported a threat 9905 | -6/Proximity Caves | Spotter reported a threat 9908 | -6/Proximity Caves | Learned location of Extension (-5) 10094 | -6/Proximity Caves | Discovered exit to Factory (range 7) 10213 | -6/Proximity Caves | Received a Behemoth hack from an annoying Tinkerer 10222 | -6/Proximity Caves | Entered Factory 10222 | -6/Factory | Evolved 2 slots: Utility x2 10570 | -6/Factory | Repaired Missile Launcher 10572 | -6/Factory | Search patrols dispatched 10589 | -6/Factory | Sucked down chute 10589 | -6/Factory | Entered Waste 10604 | -6/Waste | EMP discharged 10604 | -6/Waste | Spotted C-40 Crusher 10606 | -6/Waste | Spotted C-40 Crusher 10626 | -6/Waste | Spotted C-40 Crusher 10663 | -6/Waste | Spotted C-40 Crusher 10700 | -6/Waste | Spotted C-40 Crusher 10704 | -6/Waste | EMP discharged 10724 | -6/Waste | Spotted C-40 Crusher 10776 | -6/Waste | Destroyed C-40 Crusher 10780 | -6/Waste | Found Damper Plating 10804 | -6/Waste | EMP discharged 10805 | -6/Waste | Destroyed C-40 Crusher 10810 | -6/Waste | Found Damper Plating 10884 | -6/Waste | Discovered new exit (range 15) 10904 | -6/Waste | EMP discharged 10992 | -6/Waste | Destroyed C-40 Crusher 11004 | -6/Waste | EMP discharged 11040 | -6/Waste | Identified exit to Factory 11042 | -6/Waste | Entered Factory 11353 | -6/Factory | Local machine network offline 11633 | -6/Factory | Build established: Mutant 12258 | -6/Factory | Discovered new exit (range 16) 12280 | -6/Factory | Identified exit to Factory 12345 | -6/Factory | Discovered new exit (range 14) 12365 | -6/Factory | Identified exit to Lower Caves 12864 | -6/Factory | Found Launcher Loader 12968 | -6/Factory | Identified exit to Garrison 12968 | -6/Factory | Entered Garrison 12992 | -6/Garrison | Expanded RIF knowledge: Hotswap 13138 | -6/Garrison | Triggered checkpoint 13177 | -6/Garrison | Garrison Relay disabled 13237 | -6/Garrison | Triggered checkpoint 13340 | -6/Garrison | Lost 3 allies 13439 | -6/Garrison | Discovered exit to Factory (range 10) 13470 | -6/Garrison | Found Quantum Capacitor 13481 | -6/Garrison | Build established: Bothacker-Mutant 13537 | -6/Garrison | Garrison Relay disabled 13638 | -6/Garrison | Triggered checkpoint 13705 | -6/Garrison | Discovered exit to Factory (range 15) 13918 | -6/Garrison | Discovered exit to Factory (range 14) 13991 | -6/Garrison | Entered Factory 13991 | -5/Factory | Evolved 2 slots: Utility x2 14209 | -5/Factory | Sucked down chute 14209 | -5/Factory | Entered Waste 14209 | -5/Waste | The area was eerily silent 14254 | -5/Waste | Found Damper Plating 14269 | -5/Waste | Found Gamma Bomb Array 14481 | -5/Waste | Found Damper Plating 14494 | -5/Waste | Found Damper Plating 14512 | -5/Waste | Found Prototype Launcher 14512 | -5/Waste | Identified Tactical Quantum Warhead 14534 | -5/Waste | Discovered new exit (range 13) 14784 | -5/Waste | Identified exit to Factory 14904 | -5/Waste | Entered Factory 15131 | -5/Factory | Discovered new exit (range 6) 15135 | -5/Factory | Identified exit to Extension 15137 | -5/Factory | Entered Extension 15137 | -5/Extension | Accompanied by 1 ally 15243 | -5/Extension | Rescued A7 15291 | -5/Extension | Rescued a captive Derelict 15292 | -5/Extension | Rescued a captive Derelict 15352 | -5/Extension | Rescued a captive Derelict 15353 | -5/Extension | Rescued a captive Derelict 15399 | -5/Extension | Rescued a captive Derelict 15899 | -5/Extension | Spotted B-75 Beast 15909 | -5/Extension | Allies destroyed B-75 Beast 15937 | -5/Extension | Rescued a captive Derelict 15939 | -5/Extension | Rescued a captive Derelict 16058 | -5/Extension | Incoming investigation squad redirected 16122 | -5/Extension | Lost 3 allies 16419 | -5/Extension | Discovered new exit (range 10) 16422 | -5/Extension | Discovered new exit (range 6) 16430 | -5/Extension | Identified exit to Cetus 16453 | -5/Extension | Entered Cetus 16453 | -5/Cetus | Accompanied by 10 allies (A7) 16458 | -5/Cetus | Acquired a Cetus Manufacturing Module code from A7 16473 | -5/Cetus | Spotted Cetus Guard 16474 | -5/Cetus | Spotted Cetus Guard 16479 | -5/Cetus | Spotted Cetus Guard 16480 | -5/Cetus | Spotted Cetus Guard 16487 | -5/Cetus | Allies destroyed Cetus Guard 16490 | -5/Cetus | Destroyed Cetus Guard 16490 | -5/Cetus | Destroyed Cetus Guard 16493 | -5/Cetus | Destroyed Cetus Guard 16541 | -5/Cetus | System corruption reached 10% 16581 | -5/Cetus | Started Cetus Manufacturing Module 16592 | -5/Cetus | Escorted A7 to Cetus Mainframe 16606 | -5/Cetus | Manufactured an Enhanced Grunt 16608 | -5/Cetus | Discovered new exit (range 16) 16631 | -5/Cetus | Manufactured an Enhanced Grunt 16632 | -5/Cetus | Identified exit to Archives 16656 | -5/Cetus | Manufactured an Enhanced Grunt 16681 | -5/Cetus | Manufactured an Enhanced Grunt 16706 | -5/Cetus | Manufactured an Enhanced Grunt 16745 | -5/Cetus | Entered Archives 16745 | -5/Archives | Accompanied by 14 allies (A7) 16750 | -5/Archives | Received a hacking code to weaken MAIN.C 16839 | -5/Archives | Discovered new exit (range 14) 16868 | -5/Archives | Discovered new exit (range 16) 16920 | -5/Archives | Discovered new exit (range 15) 17004 | -5/Archives | Build established: Commander-Mutant 17247 | -5/Archives | Identified exit to Hub_04(d) 17368 | -5/Archives | Entered Hub_04(d) 17368 | -5/Hub_04(d) | Accompanied by 11 allies 17379 | -5/Hub_04(d) | Network Hub disabled 17439 | -5/Hub_04(d) | Spotted Lightning 17440 | -5/Hub_04(d) | Spotted Lightning 17475 | -5/Hub_04(d) | Spotted Lightning 17501 | -5/Hub_04(d) | Lost 12 allies 17564 | -5/Hub_04(d) | Found Prototype Energy Cannon 17572 | -5/Hub_04(d) | Found Prototype Device 17572 | -5/Hub_04(d) | Identified Exp. EM Shield 17581 | -5/Hub_04(d) | Destroyed Lightning 17585 | -5/Hub_04(d) | Spotted B-75 Beast 17631 | -5/Hub_04(d) | Destroyed B-75 Beast 17730 | -5/Hub_04(d) | Build established: Bothacker-Mutant 17972 | -5/Hub_04(d) | Discovered new exit (range 16) 17996 | -5/Hub_04(d) | Identified exit to Factory 18032 | -5/Hub_04(d) | Network Hub disabled 18047 | -5/Hub_04(d) | Entered Factory 18047 | -4/Factory | Evolved 2 slots: Power x1, Weapon x1 18049 | -4/Factory | Identified EMDS 18169 | -4/Factory | Discovered new exit (range 4) 18173 | -4/Factory | Identified exit to Upper Caves 18455 | -4/Factory | Discovered new exit (range 22) 18594 | -4/Factory | Build established: Scavenger-Assassin 18614 | -4/Factory | Spotted B-86 Titan 18989 | -4/Factory | Build established: Scavenger-Skirmisher 18993 | -4/Factory | Repaired Arm. Huge Wheel? 19080 | -4/Factory | Repaired Quantum Reactor 19363 | -4/Factory | Build established: Scavenger-Mutant 19732 | -4/Factory | Discovered new exit (range 5) 19737 | -4/Factory | Identified exit to Research 19982 | -4/Factory | Entered Research 19982 | -3/Research | Evolved 2 slots: Utility x2 20271 | -3/Research | Found Prototype Protection 20271 | -3/Research | Identified Centrium Heavy Armor Plating 20457 | -3/Research | Found Prototype Device 20464 | -3/Research | Identified Exp. Focal Shield 20922 | -3/Research | Found Centrium Heavy Armor Plating 21506 | -3/Research | Build established: Mutant 21544 | -3/Research | Discovered new exit (range 6) 21677 | -3/Research | Identified exit to Research 21841 | -3/Research | Central database locked down 22191 | -3/Research | Spotted B-86 Titan 22232 | -3/Research | First assault squad dispatched 22278 | -3/Research | System corruption reached 10% 22302 | -3/Research | Lost 6 parts (1p4u1w) 22326 | -3/Research | Identified exit to Garrison 22326 | -3/Research | Entered Garrison 22421 | -3/Garrison | Triggered checkpoint 22459 | -3/Garrison | Spotted B-86 Titan 22481 | -3/Garrison | Destroyed B-86 Titan 22641 | -3/Garrison | Triggered checkpoint 22682 | -3/Garrison | Destroyed 10 combat bots 22768 | -3/Garrison | Expanded RIF knowledge: Zone Cloak 22831 | -3/Garrison | Discovered new exit (range 14) 22851 | -3/Garrison | Identified exit to Research 22859 | -3/Garrison | Phase Generator disabled 22865 | -3/Garrison | Entered Research 23115 | -3/Research | First assault squad dispatched 23339 | -3/Research | Released all parts (15) 23341 | -3/Research | Core integrity fell below 50% 23357 | -3/Research | System corruption reached 30% 23363 | -3/Research | Core integrity fell below 20% 23368 | -3/Research | Lost 6 parts (1p1n2u2w) 23368 | -3/Research | Destroyed by S-43 Plague with Heavy Machine Gun Last Messages --------------- 23339_ Released Relay Coupler [Swarmer]. 23339_ Released Adv. Sensor Array. 23339_ Released Hvy. Wave Gun. 23339_ Acquired 45 matter. 23340_ R-10 Processor collects Hvy. Wave Gun. 23340_ G-67 Veteran destroyed. 23343_ R-10 Processor collects Corrupted Adv. Heat Sink. 23344_ System corrupted: Matter fused (-7). 23345_ R-10 Processor collects Exp. Energy Well. 23347_ O-32 Director: "IFF HANDSHAKE FAILED. SECURING TERMINAL." 23356_ Slammed into S-43 Plague. 23356_ Destabilizing: System corrupted (+1). 23357_ Slammed into S-43 Plague. 23361_ W-44 Eye sends out distress signal. 23365_ P-80 Master resets P-80 Master, system corruption cleaned. 23366_ P-80 Master resets A-15 Conveyor, system corruption cleaned. Map ----- +----------------------------------------------------+ | ??????????????????????# #?############# #??? | | ??????????????????????# #?# # #### | | ??????????????????????# #?# [[][=# # | | ??????????????????????# #?# ==!![!%#| # | | ??????????#########???# ### %!!=*/ ^+ | | ??????????# #???# + %]]**!!#^ # | | ??????????# #???# ### """!"!"!!# # | | ??????????# #???# #?# """T"""]|# #### | | ??????????# #???# #?############# | | ???????????? ?????# #???????#########+###### | | ?????????????#+########o #???????# | | ?????????????# %% #???????# | | ?????????????######## sp #???????# | | ????????????????????#ps ####????# """"""" | | ????????????????????# +????# """"""" | | ????????????????????# m####????# """"""" | | ????????????????????# #???????# | | ????????????????????# #???????# | | ????????????????????# A#???????################ | | ????????????????????# A#???????????# ##? | | ????????????????????# t #???????????# #?? | | ????????????????????# #???????????# #?? | | ????????????????????# t #???????????# ] #?? | | ????????????????????# #???????????# #?? | | ????????????????????# #???????????# ! #?? | | ????????????????????#k s@#???????????# #?? | | ????????????????????#k +???????????# #?? | | ????????????????????# #???????????# #?? | | ????????????????????# sw #????????########/###### | | ????????????????????# #???###### | | ????????????????????#k | | ????????????????????# ########## | | ????????????????????# #????????# | | ????????????????????# u #????????# ########"# | | ????????????????????#s #????????# ########"# | | ???????????????????? s +????????# ?# !!! | | ????????????????????#######????????# ?# !! | | ??????????????????????????????????## # ! | | ??????????????????????????????????# # | | ??????????????????????????????????#T + | | ??????????????????????????????????## # % | | ????????????????????????????????????????##"+###### | | ????????????????????????????????????????# | | ????????????????????????????????????????# | | ????????????????????????????????????? # """ | | ???????????????????????????????????# # """ | | ???????????????????????????????????+ + R" | | ???????????????????????????????????# # """ | | ???????????????????????????????????# # | | ???????????????????????????????????# # | +----------------------------------------------------+ Best States ------------- Heat Dissipation 109 Coolant Potential 80 Energy Generation 45 Energy Capacity 1350 Matter Stores 300 Matter Capacity 600 Sight Range 22 Robot Scan Range 16 Terrain Scan Density 10 ECM Strength 2 Additional Mass Support 12 Corruption Block 8 Armor Coverage 1825 Resistance: EM 90 Weapon Shielding 33 Evasion (%) 50 Targeting Accuracy 20 Launcher Accuracy 30 Target Analysis 11 Recoil Reduction 2 Energy Filtering 30 Offensive Hacking 12 Relay Coupler Types 5 Relay Coupler Value 101 Item Schematics ----------------- Combat Drone Bay | -7/Data Miner | Free Lgt. Regenerative Plating | -7/Data Miner | Free Cld. Aerolev Unit | -7/Data Miner | Free Exp. Targeting Computer | -7/Data Miner | Free Shock Maul | -7/Data Miner | Free Hvy. Treads | -7/Data Miner | Free Imp. Launcher Guidance Computer | -7/Data Miner | Free Disruptor Cannon | -7/Data Miner | Free Robot Schematics ------------------ Y-54 Guardian | -7/Data Miner | Free X-67 Chaingunner | -7/Data Miner | Free G-47 Trooper | -7/Data Miner | Free M-22 Extractor | -7/Data Miner | Free Fabricated ------------ Phase Cannon | x2 | -7/Factory | Preloaded Repaired ---------- Hrd. Light Armor Plating | 68% | -8/Materials Arm. Huge Wheel | 58% | -7/Factory Arm. Huge Wheel | 69% | -7/Factory Missile Launcher | 13% | -6/Factory Arm. Huge Wheel | 36% | -4/Factory Quantum Reactor | 33% | -4/Factory Studied --------- Hvy. Assault Rifle | -8/Materials | Hacked Autogun | -8/Materials | Hacked Grenade Launcher | -8/Materials | Hacked Com. Wheel | -8/Materials | Hacked Quantum Reactor | -3/Research | Hacked Alien Tech Used ----------------- None Achievements -------------- Assassin Hack The Planet Join The Dark Side Mindtrick Not Today, Chutes Taming Of The Crushers Versatile You Will Be Upgraded Challenges ------------ None Game ------ Seed CompactTargetingTorch Manual? 0 Play Time 03:56:35 Cumulative 412.5 hours Start 2025.12.14 @ 10:46:35 End 2025.12.15 @ 15:06:03 Sessions 5 Manual Loads 0 Difficulty Rogue Special Mode None Game No. 254 Rogue 254 Adventurer 0 Explorer 0 Win Type - Total 11 Types 10/0/1/0/0/0/0/0/0/0 Lore% 80 Gallery% 75 Achievement% 51 Wizard Run 0 Options --------- Layout 1 ASCII 0 Keyboard 1 Movement Numpad Keybinds 0 Fullscreen 2 Font 24/Smallcaps Map View 50x35 Zoom Use 0% Tactical HUD 1 Map Filters NONE Filters NONE Steam 1 RUN: 7a6ee100-f481-4f15-b983-aa5f70847659